[Event "Early-Titled-Tuesday-Blitz-October-03-2023"]
[Site "Chess.com"]
[Date "2023.10.03"]
[Round "1"]
[White "tdf98pantani"]
[Black "B_nn_t"]
[Result "0-1"]
[WhiteElo "2683"]
[BlackElo "2416"]
[TimeControl "180+1"]
[EndTime "8:07:44 PDT"]
[Termination "B_nn_t won by resignation"]

1. c4 {[%clk 0:02:55.6]} 1... g6 {[%clk 0:02:55.6]} 2. Nc3 {[%clk 0:02:54.1]}
2... Bg7 {[%clk 0:02:55.3]} 3. e4 {[%clk 0:02:54.1]} 3... c5 {[%clk 0:02:54.4]}
4. g3 {[%clk 0:02:53.5]} 4... Nc6 {[%clk 0:02:54.3]} 5. Bg2 {[%clk 0:02:53.8]}
5... Nf6 {[%clk 0:02:53]} 6. Nge2 {[%clk 0:02:52.7]} 6... O-O {[%clk 0:02:52]}
7. O-O {[%clk 0:02:52.1]} 7... d6 {[%clk 0:02:51.9]} 8. d3 {[%clk 0:02:51.3]}
8... Bg4 {[%clk 0:02:48.4]} 9. f3 {[%clk 0:02:50.9]} 9... Bd7 {[%clk 0:02:47.6]}
10. h3 {[%clk 0:02:50.9]} 10... Rb8 {[%clk 0:02:41]} 11. f4 {[%clk 0:02:48.1]}
11... a6 {[%clk 0:02:40.6]} 12. Be3 {[%clk 0:02:44.2]} 12... b5 {[%clk
0:02:39.9]} 13. b3 {[%clk 0:02:44]} 13... h5 {[%clk 0:02:33.2]} 14. Qd2 {[%clk
0:02:39.7]} 14... Kh7 {[%clk 0:02:29.6]} 15. f5 {[%clk 0:02:33.4]} 15... Ne5
{[%clk 0:02:26.5]} 16. Nf4 {[%clk 0:02:31.7]} 16... bxc4 {[%clk 0:02:23.2]} 17.
dxc4 {[%clk 0:02:30.5]} 17... gxf5 {[%clk 0:02:18.1]} 18. Qe2 {[%clk 0:02:08.5]}
18... h4 {[%clk 0:02:02.2]} 19. gxh4 {[%clk 0:01:51.5]} 19... Rh8 {[%clk
0:01:57.2]} 20. Nfd5 {[%clk 0:01:42.7]} 20... Nxd5 {[%clk 0:01:55.8]} 21. Nxd5
{[%clk 0:01:40.3]} 21... e6 {[%clk 0:01:49.8]} 22. Nf4 {[%clk 0:01:24.1]} 22...
Qxh4 {[%clk 0:01:49]} 23. exf5 {[%clk 0:01:22.4]} 23... exf5 {[%clk 0:01:48.9]}
24. Qf2 {[%clk 0:01:08.9]} 24... Qxf2+ {[%clk 0:01:45.3]} 25. Kxf2 {[%clk
0:01:01.7]} 25... Ng6 {[%clk 0:01:41.9]} 26. Rad1 {[%clk 0:01:00.6]} 26... Be5
{[%clk 0:01:39.4]} 27. Nd3 {[%clk 0:00:54.5]} 27... f4 {[%clk 0:01:36.8]} 28.
Bc1 {[%clk 0:00:43.6]} 28... Bd4+ {[%clk 0:01:36.5]} 29. Ke1 {[%clk 0:00:43.9]}
29... Rhe8+ {[%clk 0:01:34.3]} 30. Kd2 {[%clk 0:00:44.2]} 30... Bf5 {[%clk
0:01:28.7]} 31. Rde1 {[%clk 0:00:42.1]} 31... Be3+ {[%clk 0:01:25.4]} 32. Kc3
{[%clk 0:00:41.5]} 32... Bd4+ {[%clk 0:01:24.6]} 33. Kd2 {[%clk 0:00:39.7]}
33... Re6 {[%clk 0:01:16.5]} 34. Rxe6 {[%clk 0:00:38.4]} 34... fxe6 {[%clk
0:01:17.4]} 35. Nxf4 {[%clk 0:00:37.7]} 35... Nxf4 {[%clk 0:01:16.8]} 36. Rxf4
{[%clk 0:00:38]} 36... Kg6 {[%clk 0:01:16.9]} 37. Be4 {[%clk 0:00:36.4]} 37...
Be5 {[%clk 0:01:15.2]} 38. Rg4+ {[%clk 0:00:33.8]} 38... Kf6 {[%clk 0:01:15.4]}
39. Bxf5 {[%clk 0:00:32.7]} 39... exf5 {[%clk 0:01:16.3]} 40. Rh4 {[%clk
0:00:28.7]} 40... Rg8 {[%clk 0:01:12.8]} 41. Rh6+ {[%clk 0:00:25.4]} 41... Ke7
{[%clk 0:01:09.8]} 42. Kd3 {[%clk 0:00:25.7]} 42... Rg3+ {[%clk 0:01:05.2]} 43.
Ke2 {[%clk 0:00:22.6]} 43... f4 {[%clk 0:01:04.3]} 44. Rh7+ {[%clk 0:00:17.6]}
44... Kf6 {[%clk 0:01:04.2]} 45. Rh8 {[%clk 0:00:15.5]} 45... Rg2+ {[%clk
0:01:03.7]} 46. Kf3 {[%clk 0:00:15.5]} 46... Rxa2 {[%clk 0:01:01.6]} 47. Bxf4
{[%clk 0:00:13.5]} 47... Bxf4 {[%clk 0:01:01.5]} 48. Kxf4 {[%clk 0:00:14.2]}
48... Ra3 {[%clk 0:01:01.9]} 49. Rb8 {[%clk 0:00:14.1]} 49... a5 {[%clk
0:00:58.3]} 50. h4 {[%clk 0:00:13.6]} 50... a4 {[%clk 0:00:58.9]} 51. bxa4
{[%clk 0:00:12.4]} 51... Rxa4 {[%clk 0:00:59.8]} 52. Rf8+ {[%clk 0:00:10.9]}
52... Ke7 {[%clk 0:00:58.2]} 53. Rg8 {[%clk 0:00:09.2]} 53... Rxc4+ {[%clk
0:00:58.7]} 54. Kg5 {[%clk 0:00:09.8]} 54... Rc1 {[%clk 0:00:58.7]} 55. Kh6
{[%clk 0:00:08.3]} 55... d5 {[%clk 0:00:56.5]} 56. h5 {[%clk 0:00:08.2]} 56...
d4 {[%clk 0:00:57]} 57. Kg7 {[%clk 0:00:05.8]} 57... Rg1+ {[%clk 0:00:55.5]} 58.
Kh7 {[%clk 0:00:05.9]} 58... Rh1 {[%clk 0:00:53.8]} 59. h6 {[%clk 0:00:05.9]}
59... d3 {[%clk 0:00:53.2]} 60. Rg3 {[%clk 0:00:01.8]} 60... c4 {[%clk
0:00:52.8]} 61. Kg7 {[%clk 0:00:02.1]} 61... d2 {[%clk 0:00:50.5]} 62. Re3+
{[%clk 0:00:02.2]} 62... Kd6 {[%clk 0:00:49.8]} 63. Re8 {[%clk 0:00:01.8]} 63...
d1=Q {[%clk 0:00:48]} 64. Rd8+ {[%clk 0:00:02.3]} 64... Kc5 {[%clk 0:00:48.3]}
0-1

[Event "Early-Titled-Tuesday-Blitz-October-03-2023"]
[Site "Chess.com"]
[Date "2023.10.03"]
[Round "1"]
[White "esrosenberg"]
[Black "bazar-wokzal"]
[Result "1-0"]
[WhiteElo "2375"]
[BlackElo "2640"]
[TimeControl "180+1"]
[EndTime "8:07:45 PDT"]
[Termination "esrosenberg won on time"]

1. Nf3 {[%clk 0:02:42.5]} 1... c5 {[%clk 0:02:59.1]} 2. c4 {[%clk 0:02:41.9]}
2... g6 {[%clk 0:02:58.7]} 3. g3 {[%clk 0:02:41]} 3... Bg7 {[%clk 0:02:58.1]} 4.
Bg2 {[%clk 0:02:41.4]} 4... Nc6 {[%clk 0:02:58.4]} 5. Nc3 {[%clk 0:02:41.1]}
5... Nf6 {[%clk 0:02:57.9]} 6. O-O {[%clk 0:02:41.4]} 6... d5 {[%clk 0:02:57.9]}
7. cxd5 {[%clk 0:02:38.7]} 7... Nxd5 {[%clk 0:02:57.6]} 8. Nxd5 {[%clk
0:02:35.6]} 8... Qxd5 {[%clk 0:02:57]} 9. d3 {[%clk 0:02:36.5]} 9... Qh5 {[%clk
0:02:35.7]} 10. Rb1 {[%clk 0:02:24.5]} 10... Bh3 {[%clk 0:02:23.8]} 11. Be3
{[%clk 0:02:22.8]} 11... Bxg2 {[%clk 0:02:23.1]} 12. Kxg2 {[%clk 0:02:23.3]}
12... O-O {[%clk 0:02:22.3]} 13. a3 {[%clk 0:02:15.6]} 13... Rfd8 {[%clk
0:02:06.1]} 14. Qc2 {[%clk 0:02:11]} 14... Nd4 {[%clk 0:01:55.2]} 15. Bxd4
{[%clk 0:02:05.6]} 15... cxd4 {[%clk 0:01:45.5]} 16. Qc7 {[%clk 0:02:06]} 16...
Qd5 {[%clk 0:01:43.3]} 17. Rfc1 {[%clk 0:01:59.3]} 17... Rd7 {[%clk 0:01:40.9]}
18. Qc4 {[%clk 0:01:53.6]} 18... Rad8 {[%clk 0:01:31.9]} 19. Qxd5 {[%clk
0:01:53.4]} 19... Rxd5 {[%clk 0:01:32.1]} 20. Rc7 {[%clk 0:01:52.6]} 20... R5d7
{[%clk 0:01:31.2]} 21. Rbc1 {[%clk 0:01:53]} 21... f6 {[%clk 0:01:14.2]} 22.
R1c4 {[%clk 0:01:46.5]} 22... e5 {[%clk 0:01:13.1]} 23. Nd2 {[%clk 0:01:45.6]}
23... Kf7 {[%clk 0:01:08.2]} 24. Ne4 {[%clk 0:01:45.4]} 24... Bf8 {[%clk
0:01:06.8]} 25. b4 {[%clk 0:01:43.5]} 25... Ke6 {[%clk 0:01:00.5]} 26. Rxd7
{[%clk 0:01:38.2]} 26... Rxd7 {[%clk 0:01:00.2]} 27. Rc8 {[%clk 0:01:39]} 27...
Be7 {[%clk 0:00:58.7]} 28. Rh8 {[%clk 0:01:30.7]} 28... f5 {[%clk 0:00:55.9]}
29. Nd2 {[%clk 0:01:25.3]} 29... Bd6 {[%clk 0:00:42.5]} 30. Nc4 {[%clk
0:01:24.9]} 30... Bc7 {[%clk 0:00:35.5]} 31. h4 {[%clk 0:01:15.6]} 31... b5
{[%clk 0:00:33.3]} 32. Nd2 {[%clk 0:01:14.7]} 32... Bd6 {[%clk 0:00:18.6]} 33.
Nb3 {[%clk 0:01:15.4]} 33... Rc7 {[%clk 0:00:17.5]} 34. Kf3 {[%clk 0:01:13]}
34... Rc3 {[%clk 0:00:16.4]} 35. Nc5+ {[%clk 0:01:04]} 35... Bxc5 {[%clk
0:00:16.2]} 36. bxc5 {[%clk 0:01:04.3]} 36... e4+ {[%clk 0:00:16.8]} 37. Kf4
{[%clk 0:01:01]} 37... exd3 {[%clk 0:00:17.2]} 38. exd3 {[%clk 0:01:01.5]} 38...
Rxd3 {[%clk 0:00:16.5]} 39. Rxh7 {[%clk 0:00:59.1]} 39... Rxa3 {[%clk
0:00:16.1]} 40. Rb7 {[%clk 0:00:53.7]} 40... a6 {[%clk 0:00:14.3]} 41. Kg5
{[%clk 0:00:51.3]} 41... d3 {[%clk 0:00:14]} 42. c6 {[%clk 0:00:49]} 42... Kd6
{[%clk 0:00:09.6]} 43. Kxg6 {[%clk 0:00:42.1]} 43... Kxc6 {[%clk 0:00:09.3]} 44.
Rb8 {[%clk 0:00:42.8]} 44... d2 {[%clk 0:00:08.8]} 45. Rd8 {[%clk 0:00:43.6]}
45... Ra2 {[%clk 0:00:09.1]} 46. h5 {[%clk 0:00:41.1]} 46... Kc7 {[%clk
0:00:04.5]} 47. Rd3 {[%clk 0:00:39]} 47... b4 {[%clk 0:00:04.8]} 48. h6 {[%clk
0:00:39.4]} 48... b3 {[%clk 0:00:04.9]} 49. h7 {[%clk 0:00:40.2]} 49... d1=Q
{[%clk 0:00:04.5]} 50. Rxd1 {[%clk 0:00:38.8]} 1-0

[Event "Early-Titled-Tuesday-Blitz-October-03-2023"]
[Site "Chess.com"]
[Date "2023.10.03"]
[Round "1"]
[White "szachmistrz2500"]
[Black "Brave_spirit12"]
[Result "0-1"]
[WhiteElo "2431"]
[BlackElo "2757"]
[TimeControl "180+1"]
[EndTime "8:07:46 PDT"]
[Termination "Brave_spirit12 won by resignation"]

1. Nf3 {[%clk 0:03:00.9]} 1... d5 {[%clk 0:02:59.8]} 2. g3 {[%clk 0:03:00.9]}
2... c6 {[%clk 0:03:00.2]} 3. Bg2 {[%clk 0:03:01.2]} 3... h5 {[%clk 0:03:00.8]}
4. d3 {[%clk 0:02:58.3]} 4... g6 {[%clk 0:03:00.4]} 5. Nbd2 {[%clk 0:02:55]}
5... Bg7 {[%clk 0:03:00.6]} 6. e4 {[%clk 0:02:54.7]} 6... Nf6 {[%clk 0:02:57.4]}
7. Qe2 {[%clk 0:02:53.9]} 7... O-O {[%clk 0:02:57.1]} 8. e5 {[%clk 0:02:48.3]}
8... Ng4 {[%clk 0:02:51.8]} 9. h3 {[%clk 0:02:44.4]} 9... Nh6 {[%clk 0:02:52.2]}
10. c3 {[%clk 0:02:37]} 10... c5 {[%clk 0:02:50.6]} 11. Nf1 {[%clk 0:02:35.6]}
11... Nc6 {[%clk 0:02:50.3]} 12. N1h2 {[%clk 0:02:34.2]} 12... d4 {[%clk
0:02:43.5]} 13. c4 {[%clk 0:02:33.7]} 13... Qc7 {[%clk 0:02:36]} 14. Bf4 {[%clk
0:02:32.9]} 14... Qa5+ {[%clk 0:02:19.5]} 15. Bd2 {[%clk 0:02:29]} 15... Qb6
{[%clk 0:02:18.8]} 16. Rb1 {[%clk 0:02:26]} 16... f6 {[%clk 0:02:06.5]} 17. O-O
{[%clk 0:02:10.1]} 17... Nf7 {[%clk 0:02:03.9]} 18. Bf4 {[%clk 0:01:54.2]} 18...
fxe5 {[%clk 0:01:54.6]} 19. Bd2 {[%clk 0:01:52.8]} 19... Bf5 {[%clk 0:01:37.3]}
20. g4 {[%clk 0:01:47.6]} 20... hxg4 {[%clk 0:01:33.9]} 21. hxg4 {[%clk
0:01:47.6]} 21... Bd7 {[%clk 0:01:32.3]} 22. Nh4 {[%clk 0:01:47.5]} 22... Nh8
{[%clk 0:01:30]} 23. Be4 {[%clk 0:01:16.1]} 23... Nd8 {[%clk 0:01:20.4]} 24. b4
{[%clk 0:01:12]} 24... cxb4 {[%clk 0:01:10.6]} 25. Rxb4 {[%clk 0:01:10]} 25...
Qf6 {[%clk 0:01:11]} 26. g5 {[%clk 0:01:07.1]} 26... Qf7 {[%clk 0:01:09.6]} 27.
Ng4 {[%clk 0:01:06.7]} 27... Bc6 {[%clk 0:00:56.6]} 28. Nh6+ {[%clk 0:00:56.9]}
28... Bxh6 {[%clk 0:00:56.2]} 29. gxh6 {[%clk 0:00:57.1]} 29... Kh7 {[%clk
0:00:52.3]} 30. Nf3 {[%clk 0:00:51.4]} 30... Ne6 {[%clk 0:00:45.2]} 31. Nxe5
{[%clk 0:00:42.3]} 31... Qf6 {[%clk 0:00:45.1]} 32. Nxc6 {[%clk 0:00:37.4]}
32... bxc6 {[%clk 0:00:45.2]} 33. f4 {[%clk 0:00:34.8]} 33... Nc5 {[%clk
0:00:38.8]} 34. Qg2 {[%clk 0:00:29.8]} 34... Nf7 {[%clk 0:00:31.8]} 35. Rb2
{[%clk 0:00:26.8]} 35... Nd6 {[%clk 0:00:29.9]} 36. Bc1 {[%clk 0:00:23.1]} 36...
Ndxe4 {[%clk 0:00:25.6]} 37. dxe4 {[%clk 0:00:23]} 37... Nd3 {[%clk 0:00:26.2]}
38. Rc2 {[%clk 0:00:20.2]} 38... e5 {[%clk 0:00:22.2]} 39. f5 {[%clk 0:00:19.6]}
39... Nxc1 {[%clk 0:00:17.9]} 40. fxg6+ {[%clk 0:00:16.9]} 40... Qxg6 {[%clk
0:00:17.5]} 41. Qxg6+ {[%clk 0:00:16.6]} 41... Kxg6 {[%clk 0:00:18.4]} 42. Rxf8
{[%clk 0:00:14.4]} 42... Rxf8 {[%clk 0:00:18.9]} 43. Rxc1 {[%clk 0:00:15.1]}
43... Kxh6 {[%clk 0:00:18.8]} 44. Rb1 {[%clk 0:00:13.3]} 44... Rf4 {[%clk
0:00:16.4]} 45. Rb7 {[%clk 0:00:12.7]} 45... Rxe4 {[%clk 0:00:15.6]} 46. Rxa7
{[%clk 0:00:12.4]} 46... Re2 {[%clk 0:00:14.5]} 47. Rc7 {[%clk 0:00:11.6]} 47...
d3 {[%clk 0:00:14.1]} 48. Rxc6+ {[%clk 0:00:11.4]} 48... Kg5 {[%clk 0:00:14.4]}
0-1

[Event "Early-Titled-Tuesday-Blitz-October-03-2023"]
[Site "Chess.com"]
[Date "2023.10.03"]
[Round "1"]
[White "EvgenyBurmakin"]
[Black "Let_it_be_1"]
[Result "1-0"]
[WhiteElo "2341"]
[BlackElo "2613"]
[TimeControl "180+1"]
[EndTime "8:07:47 PDT"]
[Termination "EvgenyBurmakin won by resignation"]

1. e4 {[%clk 0:03:00.9]} 1... e6 {[%clk 0:02:59.9]} 2. d4 {[%clk 0:03:00.1]}
2... d5 {[%clk 0:03:00.3]} 3. Nd2 {[%clk 0:03:00.5]} 3... Nf6 {[%clk 0:03:00.2]}
4. e5 {[%clk 0:03:00.5]} 4... Nfd7 {[%clk 0:03:00.5]} 5. f4 {[%clk 0:03:01.1]}
5... c5 {[%clk 0:03:00.5]} 6. c3 {[%clk 0:03:01.6]} 6... Nc6 {[%clk 0:02:59.9]}
7. Ndf3 {[%clk 0:03:01.7]} 7... Qb6 {[%clk 0:02:59]} 8. g3 {[%clk 0:02:56.3]}
8... Be7 {[%clk 0:02:54.4]} 9. Kf2 {[%clk 0:02:50]} 9... O-O {[%clk 0:02:53.3]}
10. Kg2 {[%clk 0:02:44.7]} 10... f6 {[%clk 0:02:52]} 11. Bd3 {[%clk 0:02:41.6]}
11... cxd4 {[%clk 0:02:05.4]} 12. cxd4 {[%clk 0:02:40.7]} 12... Kh8 {[%clk
0:01:57.5]} 13. Bb1 {[%clk 0:02:22.5]} 13... Qd8 {[%clk 0:01:29.8]} 14. Qd3
{[%clk 0:02:02.1]} 14... f5 {[%clk 0:01:29.8]} 15. Ne2 {[%clk 0:02:01.4]} 15...
Nb6 {[%clk 0:01:28.5]} 16. b3 {[%clk 0:01:31.5]} 16... Bd7 {[%clk 0:01:26.9]}
17. Bb2 {[%clk 0:01:31]} 17... Rc8 {[%clk 0:01:21]} 18. a3 {[%clk 0:01:27.7]}
18... a5 {[%clk 0:01:20.7]} 19. h3 {[%clk 0:01:25.2]} 19... a4 {[%clk
0:01:20.5]} 20. Ba2 {[%clk 0:01:17.3]} 20... axb3 {[%clk 0:01:13.7]} 21. Bxb3
{[%clk 0:01:18.2]} 21... Na5 {[%clk 0:01:12.7]} 22. Ba2 {[%clk 0:01:10.8]} 22...
Nac4 {[%clk 0:01:05.6]} 23. Bc1 {[%clk 0:01:08.8]} 23... Bb5 {[%clk 0:01:04.3]}
24. Rb1 {[%clk 0:00:54]} 24... Ba6 {[%clk 0:01:04.3]} 25. Qb3 {[%clk 0:00:38.7]}
25... Rc6 {[%clk 0:00:55.3]} 26. Rd1 {[%clk 0:00:38.4]} 26... Na5 {[%clk
0:00:49.5]} 27. Qe3 {[%clk 0:00:29.9]} 27... Rc2 {[%clk 0:00:45.3]} 28. Rd2
{[%clk 0:00:26.9]} 28... Nac4 {[%clk 0:00:41.8]} 29. Qb3 {[%clk 0:00:19.8]}
29... Nxd2 {[%clk 0:00:37.3]} 30. Qxc2 {[%clk 0:00:20.1]} 30... Nxb1 {[%clk
0:00:36.5]} 31. Bxb1 {[%clk 0:00:20.5]} 31... Nc4 {[%clk 0:00:34]} 32. Qb3
{[%clk 0:00:15]} 32... Qb6 {[%clk 0:00:31.7]} 33. Qxb6 {[%clk 0:00:14.8]} 33...
Nxb6 {[%clk 0:00:31.9]} 34. Nc3 {[%clk 0:00:15.4]} 34... Rc8 {[%clk 0:00:31.6]}
35. Bd2 {[%clk 0:00:15]} 35... Bxa3 {[%clk 0:00:30.5]} 36. g4 {[%clk 0:00:15]}
36... Bb4 {[%clk 0:00:29.3]} 37. gxf5 {[%clk 0:00:11.9]} 37... Bxc3 {[%clk
0:00:27.6]} 38. Bxc3 {[%clk 0:00:10.7]} 38... Rxc3 {[%clk 0:00:27.2]} 39. fxe6
{[%clk 0:00:11.6]} 39... Kg8 {[%clk 0:00:26]} 40. f5 {[%clk 0:00:11.8]} 40...
Bd3 {[%clk 0:00:23]} 41. Bxd3 {[%clk 0:00:10.3]} 41... Rxd3 {[%clk 0:00:22.9]}
42. f6 {[%clk 0:00:11.2]} 42... gxf6 {[%clk 0:00:22.7]} 43. exf6 {[%clk
0:00:12.1]} 43... Re3 {[%clk 0:00:21.8]} 44. Ne5 {[%clk 0:00:07.5]} 44... Rxe5
{[%clk 0:00:20]} 45. dxe5 {[%clk 0:00:07.4]} 45... Kf8 {[%clk 0:00:20]} 46. e7+
{[%clk 0:00:07.9]} 46... Kf7 {[%clk 0:00:19.5]} 47. Kf3 {[%clk 0:00:07.2]} 47...
Nd7 {[%clk 0:00:18]} 48. e6+ {[%clk 0:00:07.7]} 48... Ke8 {[%clk 0:00:13.6]} 49.
f7+ {[%clk 0:00:08.2]} 49... Kxe7 {[%clk 0:00:13.2]} 50. exd7 {[%clk 0:00:08.8]}
1-0

[Event "Early-Titled-Tuesday-Blitz-October-03-2023"]
[Site "Chess.com"]
[Date "2023.10.03"]
[Round "1"]
[White "DanielTitichoca"]
[Black "javierfreilemartin"]
[Result "1-0"]
[WhiteElo "2619"]
[BlackElo "2299"]
[TimeControl "180+1"]
[EndTime "8:07:47 PDT"]
[Termination "DanielTitichoca won on time"]

1. e4 {[%clk 0:03:00.9]} 1... c5 {[%clk 0:02:54.4]} 2. Nf3 {[%clk 0:03:01]} 2...
d6 {[%clk 0:02:51.6]} 3. d4 {[%clk 0:03:00.8]} 3... cxd4 {[%clk 0:02:51.7]} 4.
Qxd4 {[%clk 0:03:01.3]} 4... e6 {[%clk 0:02:48.6]} 5. c4 {[%clk 0:03:00]} 5...
Nf6 {[%clk 0:02:48.1]} 6. Nc3 {[%clk 0:02:59.3]} 6... a6 {[%clk 0:02:47.9]} 7.
Be2 {[%clk 0:02:55.9]} 7... Qc7 {[%clk 0:02:47.9]} 8. O-O {[%clk 0:02:54.2]}
8... Nbd7 {[%clk 0:02:46.2]} 9. b3 {[%clk 0:02:50.2]} 9... b6 {[%clk 0:02:44.9]}
10. Bb2 {[%clk 0:02:47]} 10... Bb7 {[%clk 0:02:45.3]} 11. Rac1 {[%clk
0:02:47.5]} 11... Be7 {[%clk 0:02:43.4]} 12. Rfd1 {[%clk 0:02:47.8]} 12... O-O
{[%clk 0:02:42.7]} 13. h3 {[%clk 0:02:42.4]} 13... Rfe8 {[%clk 0:02:41.8]} 14.
Bd3 {[%clk 0:02:41.2]} 14... Bf8 {[%clk 0:02:40.6]} 15. Bb1 {[%clk 0:02:40.3]}
15... Ne5 {[%clk 0:02:34.3]} 16. Qe3 {[%clk 0:02:33.6]} 16... Nxf3+ {[%clk
0:02:30.6]} 17. Qxf3 {[%clk 0:02:33.2]} 17... Rac8 {[%clk 0:02:16.7]} 18. Ne2
{[%clk 0:02:31]} 18... Nd7 {[%clk 0:02:12.2]} 19. Qg3 {[%clk 0:02:28.9]} 19...
Ne5 {[%clk 0:02:07.3]} 20. Nd4 {[%clk 0:02:13.7]} 20... Qc5 {[%clk 0:02:00.7]}
21. Kh1 {[%clk 0:02:10.5]} 21... Ng6 {[%clk 0:01:56.6]} 22. Nf3 {[%clk
0:02:04.2]} 22... Qh5 {[%clk 0:01:52.2]} 23. Kg1 {[%clk 0:01:45.5]} 23... b5
{[%clk 0:01:49.1]} 24. cxb5 {[%clk 0:01:37.5]} 24... Qxb5 {[%clk 0:01:46.1]} 25.
Bd3 {[%clk 0:01:33.1]} 25... Qa5 {[%clk 0:01:43.7]} 26. a3 {[%clk 0:01:29.2]}
26... Rxc1 {[%clk 0:01:14.6]} 27. Rxc1 {[%clk 0:01:25.3]} 27... Rc8 {[%clk
0:01:15.1]} 28. Rd1 {[%clk 0:01:21]} 28... Qb6 {[%clk 0:01:03]} 29. b4 {[%clk
0:01:13.2]} 29... Bc6 {[%clk 0:00:56.5]} 30. Nd4 {[%clk 0:01:10.5]} 30... Ba4
{[%clk 0:00:52.4]} 31. Re1 {[%clk 0:01:10.7]} 31... e5 {[%clk 0:00:47.1]} 32.
Nf5 {[%clk 0:01:10.1]} 32... Bc2 {[%clk 0:00:45.5]} 33. Rc1 {[%clk 0:01:05.1]}
33... Bxd3 {[%clk 0:00:33.8]} 34. Rxc8 {[%clk 0:01:04.1]} 34... Bxe4 {[%clk
0:00:33.3]} 35. Ne3 {[%clk 0:00:53.3]} 35... Bb7 {[%clk 0:00:31.4]} 36. Rc1
{[%clk 0:00:51.6]} 36... a5 {[%clk 0:00:24.2]} 37. Nc4 {[%clk 0:00:50.9]} 37...
Qb5 {[%clk 0:00:13.2]} 38. Nxa5 {[%clk 0:00:51]} 38... Bd5 {[%clk 0:00:12.3]}
39. Rc8 {[%clk 0:00:38.8]} 39... Be6 {[%clk 0:00:07.3]} 40. Rc1 {[%clk
0:00:26.7]} 40... Nf4 {[%clk 0:00:05.5]} 41. Qe3 {[%clk 0:00:20.3]} 41... Qd5
{[%clk 0:00:04.3]} 42. f3 {[%clk 0:00:17.5]} 42... Bxh3 {[%clk 0:00:02.5]} 43.
Nc4 {[%clk 0:00:14]} 1-0

[Event "Early-Titled-Tuesday-Blitz-October-03-2023"]
[Site "Chess.com"]
[Date "2023.10.03"]
[Round "1"]
[White "Zavgorodniy_Sergiy"]
[Black "invisible_s0ul"]
[Result "0-1"]
[WhiteElo "2601"]
[BlackElo "2304"]
[TimeControl "180+1"]
[EndTime "8:07:48 PDT"]
[Termination "invisible_s0ul won by resignation"]

1. e4 {[%clk 0:03:00.9]} 1... c5 {[%clk 0:02:59.5]} 2. Nf3 {[%clk 0:03:00.2]}
2... Nc6 {[%clk 0:02:51.8]} 3. Bb5 {[%clk 0:02:59.1]} 3... g6 {[%clk 0:02:47.6]}
4. O-O {[%clk 0:02:58.3]} 4... Bg7 {[%clk 0:02:47.6]} 5. c3 {[%clk 0:02:58.9]}
5... a6 {[%clk 0:02:38.5]} 6. Ba4 {[%clk 0:02:53.8]} 6... b5 {[%clk 0:02:37.7]}
7. Bc2 {[%clk 0:02:53.8]} 7... d5 {[%clk 0:02:17.9]} 8. e5 {[%clk 0:02:41.3]}
8... Nxe5 {[%clk 0:02:14.5]} 9. Nxe5 {[%clk 0:02:31.5]} 9... Bxe5 {[%clk
0:02:15.4]} 10. d4 {[%clk 0:02:31.7]} 10... cxd4 {[%clk 0:02:12.1]} 11. cxd4
{[%clk 0:02:32.6]} 11... Bg7 {[%clk 0:02:09.6]} 12. a4 {[%clk 0:02:33.5]} 12...
Bd7 {[%clk 0:02:05.7]} 13. Nc3 {[%clk 0:02:31.7]} 13... Nf6 {[%clk 0:02:00.8]}
14. Bf4 {[%clk 0:02:28.8]} 14... b4 {[%clk 0:01:54.6]} 15. Nb1 {[%clk
0:02:24.6]} 15... a5 {[%clk 0:01:53]} 16. Nd2 {[%clk 0:02:24.3]} 16... O-O
{[%clk 0:01:48.8]} 17. Re1 {[%clk 0:02:23.8]} 17... Rc8 {[%clk 0:01:44]} 18. Bd3
{[%clk 0:02:22.3]} 18... Re8 {[%clk 0:01:37.7]} 19. Nb3 {[%clk 0:02:19.2]} 19...
Bc6 {[%clk 0:01:23.8]} 20. f3 {[%clk 0:02:03]} 20... Qb6 {[%clk 0:01:20.2]} 21.
Be5 {[%clk 0:01:57.4]} 21... Nd7 {[%clk 0:01:14.5]} 22. Bxg7 {[%clk 0:01:52.8]}
22... Kxg7 {[%clk 0:01:15.4]} 23. Kh1 {[%clk 0:01:52.2]} 23... e5 {[%clk
0:01:10.8]} 24. dxe5 {[%clk 0:01:46.9]} 24... Nxe5 {[%clk 0:01:10.9]} 25. f4
{[%clk 0:01:32.6]} 25... Nc4 {[%clk 0:00:53.3]} 26. Qc2 {[%clk 0:01:27.2]} 26...
Bxa4 {[%clk 0:00:42.1]} 27. Rxe8 {[%clk 0:01:21]} 27... Bxe8 {[%clk 0:00:43]}
28. Qe2 {[%clk 0:01:15.3]} 28... a4 {[%clk 0:00:33.1]} 29. Nc1 {[%clk
0:01:05.9]} 29... Bb5 {[%clk 0:00:29.5]} 30. f5 {[%clk 0:01:03.4]} 30... Re8
{[%clk 0:00:28.2]} 31. Qf1 {[%clk 0:00:47.6]} 31... Nd2 {[%clk 0:00:20.7]} 32.
Qd1 {[%clk 0:00:48]} 32... Bxd3 {[%clk 0:00:19.6]} 33. Qxd2 {[%clk 0:00:48.3]}
33... Bxf5 {[%clk 0:00:19.1]} 34. Na2 {[%clk 0:00:46.7]} 34... b3 {[%clk
0:00:17.9]} 35. Nc3 {[%clk 0:00:46.9]} 35... d4 {[%clk 0:00:12.8]} 36. Ne2
{[%clk 0:00:46.4]} 36... d3 {[%clk 0:00:11.7]} 37. Ng3 {[%clk 0:00:46.3]} 37...
Qd4 {[%clk 0:00:11]} 38. h3 {[%clk 0:00:44.6]} 38... Be4 {[%clk 0:00:09.6]} 39.
Rc1 {[%clk 0:00:27.4]} 39... Rb8 {[%clk 0:00:03.8]} 40. Rc7 {[%clk 0:00:27.1]}
40... Qe5 {[%clk 0:00:03.2]} 41. Rc4 {[%clk 0:00:24.1]} 41... Bf5 {[%clk
0:00:03.2]} 42. Rf4 {[%clk 0:00:19.7]} 42... Rc8 {[%clk 0:00:02.6]} 43. Nxf5+
{[%clk 0:00:19.6]} 43... gxf5 {[%clk 0:00:02.9]} 44. h4 {[%clk 0:00:19.9]} 44...
Rc2 {[%clk 0:00:02.8]} 45. Kh2 {[%clk 0:00:20.5]} 45... Rxd2 {[%clk 0:00:02.9]}
46. Kh3 {[%clk 0:00:19.7]} 46... Qxf4 {[%clk 0:00:03.5]} 0-1